Cogmind - Beta 13 @@@ ROGUE MODE // 2024.05.11 @ 12:21:24 Player: Exceptionally Mediocre Result: Destroyed by as-92365 with Assembled Heavy Rifle Performance ------------- Evolutions (0) 0 Regions Visited (2) 400 Robots Destroyed (43) 215 Value Destroyed (549) 549 Prototype IDs (1) 20 Alien Tech Used (0) 0 Bonus (46) 46 TOTAL SCORE: 1230 Bonus ------- Follower Combat Kills 67 Friendly Fire -21 Cogmind --------- Core Integrity 0/250 Matter 246/300 Energy 250/250 System Corruption 0% Temperature Cool (0) Movement Core (500) Ox9 Location -10/Mines Parts ------- > --- POWER (1) -------- Ion Engine > --- PROPULSION (2) --- (None) > --- UTILITY (2) ------ Large Storage Unit Salvage Targeting Computer > --- WEAPON (2) ------- Grenade Launcher > --- INVENTORY (15) --- Light Ion Engine Light Ion Engine Improved Heat Sink Utility Shielding Hacking Suite Splice Drone Bay Assault Rifle Assault Rifle Assault Rifle Improved Assault Rifle Improved Assault Rifle Battle Cannon Grenade Launcher Mining Laser Peak State ------------ > --- POWER ------------ Ion Engine > --- PROPULSION ------- Light Treads Light Treads > --- UTILITY ---------- Large Storage Unit Salvage Targeting Computer > --- WEAPON ----------- Improved Assault Rifle Improved Assault Rifle > --- INVENTORY -------- Light Ion Engine Light Ion Engine Light Ion Engine Light Treads Improved Heat Sink Hacking Suite Medium Laser Small Laser Small Laser Assault Rifle Light Assault Rifle Improved Assault Rifle Grenade Launcher Grenade Launcher [Rating: 14] Favorites ----------- Power Ion Engine Engine Ion Engine Propulsion Light Treads Treads Light Treads Utility Salvage Targeting Computer Storage Large Storage Unit Processor Salvage Targeting Computer Weapon Improved Assault Rifle Energy Gun Medium Laser Ballistic Gun Improved Assault Rifle Launcher Rocket Launcher Build | -11 -10 -10 ------- Run | Yrd Mat Min Slots Evolved . | . . . Power . | . . . Propulsion . | . . . Utility . | . . . Weapon . | . . . Parts Attached 14 | 6 5 3 Power 2 | 1 1 . Engine 2 | 1 1 . Core . | . . . Reactor . | . . . Propulsion 3 | 2 . 1 Treads 3 | 2 . 1 Leg . | . . . Wheel . | . . . Hover . | . . . Flight . | . . . Utility 3 | 1 2 . Device . | . . . Storage 2 | 1 1 . Processor 1 | . 1 . Hackware . | . . . Protection . | . . . Artifact . | . . . Weapon 6 | 2 2 2 Energy Gun 1 | 1 . . Energy Cannon . | . . . Ballistic Gun 3 | 1 2 . Ballistic Cannon . | . . . Launcher 2 | . . 2 Special Weapon . | . . . Impact Weapon . | . . . Slashing Weapon . | . . . Piercing Weapon . | . . . Special Melee Weapon . | . . . Unidentified Prototypes 1 | . 1 . Parts Lost 5 | . . 5 Power . | . . . Propulsion 3 | . . 3 Utility . | . . . Weapon 2 | . . 2 Highest Loss Streak 4 | . . 4 To Critical Strikes . | . . . Average Slot Usage (%) 99 | . 99 99 Engine 14 | . 14 14 Treads 27 | . 28 27 Storage 14 | . 14 14 Processor 13 | . 13 14 Ballistic Gun 27 | . 27 27 Naked Turns . | . . . Heaviest Build 31 | 11 31 31 Greatest Support 40 | 40 40 40 Greatest Overweight (x) 1 | 1 . . Average Overweight (x) . | . . . Largest Inventory Capacity 15 | 8 15 15 Average Capacity 14 | 7 14 15 Most Carried 15 | 2 15 15 Average Carried 12 | 1 11 14 Final Capacity 15 | 8 15 15 Final Carried 15 | 2 15 14 Class Distribution -------------------- 100% | Mutant Dominant Class ---------------- Mutant | -10/Materials Mutant | -10/Mines Resources | -11 -10 -10 ----------- Run | Yrd Mat Min Matter Collected 849 | 265 423 161 Remotely . | . . . Salvage Created 1361 | 111 800 450 Parts 92 | 10 54 28 Haulers Intercepted 2 | . 2 . Recyclers Shooed 3 | 1 1 1 Parts Field Recycled . | . . . Retrieved Matter . | . . . Parts Self-Destructed . | . . . Prevented . | . . . Kills | -11 -10 -10 ------- Run | Yrd Mat Min Combat Hostiles Destroyed 27 | . 10 17 Guns 17 | . 10 7 AOE 10 | . . 10 Classes Destroyed 10 | 3 6 1 Worker 8 | 1 3 4 Builder 2 | . 2 . Tunneler 5 | 2 . 3 Hauler 2 | . 2 . Recycler 4 | 1 1 2 Operator 2 | . 2 . Watcher 3 | . 3 . Swarmer 9 | . 2 7 Grunt 8 | . 8 . Assembled 10 | . . 10 Best Kill Streak 10 | 3 4 10 Combat Bots Only 10 | . 4 10 Max Kills in Single Turn 3 | 1 1 3 Gunslinging . | . . . Exploded 3 | . . 3 Melee . | . . . Uniques/NPCs Destroyed . | . . . Combat | -11 -10 -10 -------- Run | Yrd Mat Min Hostile Shots Fired 123 | . 57 66 Missed 31 | . 16 15 Damage Taken 1149 | . 493 656 Core 256 | . 98 158 Absorbed by Shields . | . . . Core Remaining (%) 100 | 100 . . Volleys Fired 99 | 6 62 31 Largest 2 | 2 2 2 Hottest 70 | 70 46 46 Shots Fired 193 | 12 124 57 Gun 188 | 12 124 52 Cannon . | . . . Launcher 5 | . . 5 Special . | . . . Kinetic 182 | 6 124 52 Thermal 6 | 6 . . Explosive 5 | . . 5 Electromagnetic . | . . . Robot Hit Streak 13 | 7 13 6 Robot Miss Streak 3 | 1 3 3 Penetration Max . | . . . Secondary Targets 5 | . 3 2 Max Gunslinging Chain 1 | . 1 1 Shots Hit Robots 131 | 7 88 36 Core Hits 73 | 5 31 37 Critical Kills . | . . . Critical Parts Destroyed 1 | . 1 . Critical Strikes 2 | 1 1 . Burn 1 | 1 . . Destroy 1 | . 1 . Melee Attacks . | . . . Impact . | . . . Slashing . | . . . Piercing . | . . . Sneak Attacks . | . . . Combat Hostiles . | . . . Follow-up Attacks . | . . . Damage Inflicted 2625 | 94 1337 1194 Guns 1992 | 94 1337 561 Cannons . | . . . Explosions 633 | . . 633 Melee . | . . . Ramming . | . . . Kinetic 1917 | 19 1337 561 Thermal 75 | 75 . . Explosive 633 | . . 633 Electromagnetic . | . . . Impact . | . . . Slashing . | . . . Piercing . | . . . Highest Corruption . | . . . Average Corruption . | . . . Corruption Purged . | . . . Corruption Blocked . | . . . Overload Shots . | . . . Overflow Damage 49 | . . 49 Projectiles . | . . . Explosions 49 | . . 49 Melee . | . . . Knockbacks . | . . . Impact . | . . . Kinetic . | . . . Secondary . | . . . Self-Inflicted Damage 36 | . . 36 Shots 2 | . . 2 Rammed . | . . . Targets Rammed . | . . . Kicked . | . . . Crushed . | . . . Highest Temperature 70 | 70 35 . Average Temperature 20 | 30 14 . Received Heat Transfer 239 | . 219 20 Siege Activations . | . . . Robots Corrupted . | . . . Combat Hostiles . | . . . Parts Fried . | . . . Impact Corruptions . | . . . Robots Melted . | . . . Combat Hostiles . | . . . Parts Melted . | . . . Heat Transferred 296 | 296 . . Parts Sabotaged . | . . . Parts Stolen . | . . . Parts Stripped . | . . . Power Chain Reactions . | . . . Alert | -11 -10 -10 ------- Run | Yrd Mat Min Peak Influence 243 | 20 199 243 Initial 49 | . 13 49 Average 101 | 5 93 124 Maximum Alert Level 1 | . . 1 Low Security (%) 94 | 100 100 85 Level 1 5 | . . 14 Level 2 . | . . . Level 3 . | . . . Level 4 . | . . . Level 5 . | . . . High Security . | . . . Max Security . | . . . Squads Dispatched 2 | . 2 . Investigation . | . . . Extermination . | . . . Reinforcement 2 | . 2 . Assault . | . . . Garrison . | . . . Intercept . | . . . Searches Triggered . | . . . Construction Impeded . | . . . Haulers Reinforced . | . . . Active Scanning Responses . | . . . Cargo Convoy Interrupts . | . . . Stealth | -11 -10 -10 --------- Run | Yrd Mat Min Distress Signals 1 | . 1 . Communications Jammed . | . . . Distress Signals . | . . . Times Spotted 52 | . 20 32 Peak Tracking Total 20 | . 5 20 Tactical Retreats . | . . . Traps | -11 -10 -10 ------- Run | Yrd Mat Min Traps Triggered 1 | . 1 . Indirectly . | . . . Trap Hack Attempts . | . . . Triggered . | . . . Disarmed . | . . . Reprogrammed . | . . . Reused . | . . . Traps Extracted . | . . . Installed . | . . . Triggered . | . . . Machines | -11 -10 -10 ---------- Run | Yrd Mat Min Machines Disabled . | . . . Max in Single Turn . | . . . Machines Repaired . | . . . Machines Dismantled . | . . . Machines Sabotaged . | . . . Overloaded Fab Kills . | . . . Hacking | -11 -10 -10 --------- Run | Yrd Mat Min Machines Accessed 2 | . 1 1 Terminals 1 | . 1 . Fabricators . | . . . Repair Stations . | . . . Recycling Units . | . . . Scanalyzers . | . . . Garrison Access . | . . . Total Hacks 2 | . 1 1 Successful 1 | . . 1 Failed 1 | . 1 . Catastrophic . | . . . Database Lockouts . | . . . Manual 1 | . 1 . Terminals 1 | . 1 . Fabricators . | . . . Repair Stations . | . . . Recycling Units . | . . . Scanalyzers . | . . . Garrison Access . | . . . Terminal Hacks 1 | . . 1 Open Door 1 | . . 1 Fabricator Hacks . | . . . Repair Station Hacks . | . . . Recycling Unit Hacks . | . . . Scanalyzer . | . . . Garrison Access Hacks . | . . . Unauthorized Hacks . | . . . Terminals . | . . . Fabricators . | . . . Repair Stations . | . . . Recycling Units . | . . . Scanalyzers . | . . . Garrison Access . | . . . Data Cores Recovered . | . . . Used . | . . . Hacking Detections 1 | . 1 . Full Trace Events . | . . . Feedback Events . | . . . Feedback Blocked . | . . . Robot Schematics Acquired . | . . . Robots Built . | . . . Authchips . | . . . Time . | . . . Total Robot Build Rating . | . . . Part Schematics Acquired . | . . . Parts Built . | . . . Authchips . | . . . Time . | . . . Total Part Build Rating . | . . . Parts Repaired . | . . . Time . | . . . Parts Recycled . | . . . Recycled Matter . | . . . Retrieved Matter . | . . . Retrieved Components . | . . . Parts Scanalyzed . | . . . Part Schematics Acquired . | . . . Parts Damaged . | . . . Bothacking | -11 -10 -10 ------------ Run | Yrd Mat Min Used RIF Installer . | . . . Robots Hacked . | . . . Non-combat . | . . . Combat . | . . . Robot Hacks Applied . | . . . Relay Couplers Released . | . . . Fabnet Peak Effective % . | . . . Robots Rewired . | . . . Allies Hacked . | . . . Hacks Repelled . | . . . Allies | -11 -10 -10 -------- Run | Yrd Mat Min Total Allies 1 | . . 1 Largest Group 1 | . . 1 Highest-Rated Group 31 | . . 31 Highest-Rated Ally 31 | . . 31 Total Orders . | . . . Ally Attacks 9 | . . 9 Total Damage 103 | . . 103 Kills 3 | . . 3 Allies Corrupted . | . . . Allies Melted . | . . . Intel | -11 -10 -10 ------- Run | Yrd Mat Min Robot Analysis Total . | . . . Derelict Logs Recovered 3 | . . 3 Drone Launches . | . . . Drone Recoveries . | . . . Exploration | -11 -10 -10 ------------- Run | Yrd Mat Min Turns Passed 2124 | 104 1163 857 Spaces Moved 1117 | 50 595 472 Core 3 | 3 . . Treads 1114 | 47 595 472 Legs . | . . . Wheels . | . . . Hover . | . . . Flight . | . . . Fastest Speed 50 | 50 160 160 Average Speed 159 | 154 160 160 Slowest Speed 160 | 160 160 160 Overloaded Moves . | . . . Propulsion Burnouts . | . . . Robots Hopped . | . . . Cave-ins Triggered . | . . . Exploration Rate (%) 58 | 4 85 86 Regions Visited 2 Branch Regions 1 Pre-discovered Areas 2 | . . 2 Known Exits Taken . | . . . Unknown Exits Taken 2 | 1 1 . Scrap Searched 1 | . . 1 Spaces Dug . | . . . Terrain Destroyed 20 | . . 20 Melee . | . . . Projectile . | . . . AOE 20 | . . 20 Terrain Rammed . | . . . Walls Destroyed . | . . . Machines Disabled . | . . . Actions | -11 -10 -10 --------- Run | Yrd Mat Min Total 1267 | 63 684 520 Wait 8 | . 3 5 Move 1115 | 49 594 472 Hop . | . . . Pick Up 22 | 2 15 5 Fast Attach 7 | 6 1 . Attach 3 | . 1 2 Detach 1 | . 1 . Swap 4 | . 3 1 Drop 8 | . 4 4 Fire 99 | 6 62 31 Melee . | . . . Ram . | . . . Kick . | . . . Crush . | . . . Escape Stasis . | . . . Rewire . | . . . Trap . | . . . Miscellaneous . | . . . Route ------- -11/Scrapyard -10/Materials (discovered 3 exits: [*Mat x2] / *Min) -10/Mines (discovered 2 exits: [*Mat x2]) History --------- Turn | Location | Event 18 | -11/Scrapyard | Discovered new exit (range 15) 105 | -11/Scrapyard | Entered Materials 306 | -10/Materials | Build established: Mutant 397 | -10/Materials | Discovered new exit (range 7) 415 | -10/Materials | Discovered new exit (range 15) 700 | -10/Materials | Discovered new exit (range 3) 1268 | -10/Materials | Entered Mines 1329 | -10/Mines | Discovered new exit (range 6) 1421 | -10/Mines | Core integrity fell below 50% 1454 | -10/Mines | Learned location of 1 exit from Materials 1477 | -10/Mines | A weapon hastily lodged in a ceiling crevice suddenly fell to the ground 1500 | -10/Mines | Received a Mining Laser from a helpful Derelict 1614 | -10/Mines | Found the Drone Emporium 1621 | -10/Mines | Found Prototype Device 1778 | -10/Mines | Received a Rocket Launcher from a helpful Derelict 1800 | -10/Mines | Learned location of Mines (-8) 1805 | -10/Mines | Discovered new exit (range 7) 1839 | -10/Mines | Learned location of Zion (-6) 2111 | -10/Mines | Assembled infested the area 2121 | -10/Mines | Core integrity fell below 20% 2125 | -10/Mines | Destroyed by as-92365 with Assembled Heavy Rifle Last Messages --------------- 02111_ ALERT: Infestation in the mines, dispatching Demolisher response squad. 02115_ as-31901 destroyed. 02115_ as-60222 destroyed. 02117_ as-80723 destroyed. 02117_ Destroyed Asb. Hover Unit. 02119_ as-32205 destroyed. 02119_ as-21221 destroyed. 02119_ Lgt. Treads destroyed. 02119_ Destroyed Lgt. Treads. 02121_ as-30394 destroyed. 02121_ as-64794 destroyed. 02122_ The unstable cave ceiling collapses. 02123_ Rocket Launcher destroyed. 02123_ Lgt. Treads destroyed. 02123_ Imp. Assault Rifle destroyed. 02124_ Destroyed Asb. F-torch. 02124_ as-51565 destroyed. 02124_ as-94504 destroyed. 02124_ as-07173 destroyed. Map ----- +----------------------------------------------------+ | ?????????????????????????????????????? | | ?????????????????????????????????????? | | ?????????????????????????????????????? | | ?????????????????????????????????????? | | ?????????????????????????????????????? | | ?????????????????????????????????????? | | ?????????????????????????????????????? | | ?????????????????????????????????????? | | ?????????????????????????????????????? | | ?????????????????????????????????????? | | ?????????????????????????????????????? | | ??????????????#?? ???????????????????? | | ?????????????? ## a ????????????????? | | ?????????????? a a ??????????????? | | ?????????????? a a ????????????? | | ??????????##?? a ????????????? | | ???????#### ?# aa a ???????????? | | ??????## # ???????????? | | ?????## # ?????????????? | | ?????# ??????????????? | | ?????# % #???????????????? | | ?????# ##??????????????? | | ??????# %% #??????????????? | | ??????# #??????????????? | | ??????# #???????????????? | | ??????????## @ #????????????????????? | | ??????????### ###????????????????????? | | ????????????# #??????????????????????? | | ????????????# #??????????????????????? | | ??????????### #??????????????????????? | | ??????????# #??????????????????????? | | ??????????# ##??????????????????????? | | ??????????# #????????????????????#### | | ??????????# k#????????????????????# | | ??????????# #????????????????????# ## | | ??????????# #????????????????????# #? | | ??????????# #???################## #? | | ??????????# #???#!%!=[%[=%[=*= #? | | ??????????# #???#%################### | | ??????????# #???#!#??####??????##""## | | ??????????# #???# #?## ##?????#" # | | ??????????# ##??# #?# ##????#" | | ??????????# ##?#=### ##???#" | | ?????????## ###%## ##??#" # | | ?????????# = ##?##""## | | ?????????# ###### #??##### | | ?????????## #????#### #??????? | | ??????????## #???????## #??????? | | ???????????## ##????????#] ##?????? | | ????????????# ########### ##????? | +----------------------------------------------------+ Best States ------------- Heat Dissipation 25 Energy Generation 10 Energy Capacity 250 Matter Stores 300 Matter Capacity 300 Sight Range 16 Terrain Scan Density 10 Evasion (%) 40 Recoil Reduction 2 Salvage Targeting 1 Item Schematics ----------------- None Robot Schematics ------------------ None Fabricated ------------ Nothing Alien Tech Used ----------------- None Achievements -------------- None Challenges ------------ None Game ------ Seed ArcUltimateEngine Manual? 0 Play Time 00:32:50 Cumulative 168.0 hours Start 2024.05.11 @ 02:21:17 End 2024.05.11 @ 12:21:24 Sessions 1 Manual Loads 0 Difficulty Rogue Special Mode None Game No. 192 Rogue 192 Adventurer 0 Explorer 0 Win Type - Total 0 Types 0/0/0/0/0/0/0/0/0 Lore% 38 Gallery% 63 Achievement% 43 Wizard Run 0 Options --------- Layout 1 ASCII 0 Keyboard 1 Movement Vi Keybinds 0 Fullscreen 1 Font 24/Smallcaps Map View 50x35 Zoom Use 0% Tactical HUD 1 Map Filters NONE Filters NONE Steam 1 RUN: 9a2aae7f-8282-48dd-81ad-b9042d121f83